[Event "FIDE World Cadets U8 2022"]
[Site "Batumi"]
[Date "2022.09.16"]
[Round "1"]
[White "Chighvinadze, Robert"]
[Black "Xia, Joshua"]
[Result "0-1"]
[ECO "C47"]
[WhiteElo "1103"]
[BlackElo "1673"]
[Annotator "NA COMBH"]
[PlyCount "96"]
[EventDate "2022.09.16"]
[EventType "swiss"]
[EventCountry "GEO"]
[SourceTitle "playchess.com"]
[Source "ChessBase"]
[SourceQuality "1"]
[TimeControl "5400+30"]

1. e4 {[%emt 0:01:00]} e5 {[%emt 0:01:00]} 2. Nf3 {[%emt 0:00:30]} Nc6 {[%emt 0:00:30]} 3. Nc3 {[%emt 0:00:30]} Nf6 {[%emt 0:00:30]} 4. d4 {[%emt 0:00:00]} exd4 {[%emt 0:00:00]} 5. Nxd4 {[%emt 0:00:00]} Bb4 {[%emt 0:00:00]} 6. Nxc6 {[%emt 0:00:30]} bxc6 {[%emt 0:00:30]} 7. Bd3 {[%emt 0:00:30]} O-O {[%emt 0:00:30]} 8. O-O {[%emt 0:00:00]} Re8 {[%emt 0:03:30]} 9. Bg5 {[%emt 0:02:00]} h6 {[%emt 0:03:30]} 10. Bxf6 {[%emt 0:05:30]} Qxf6 {[%emt 0:00:30]} 11. Qd2 {[%emt 0:01:30]} d5 {[%emt 0:06:30]} 12. exd5 {[%emt 0:02:30]} cxd5 {[%emt 0:00:30]} 13. a3 {[%emt 0:07:30]} Bd6 {[%emt 0:00:30]} 14. Bb5 {[%emt 0:05:30]} Rd8 {[%emt 0:01:30]} 15. g3 {[%emt 0:10:30]} Bb7 {[%emt 0:00:30]} 16. Rfd1 {[%emt 0:15:30]} Be5 {[%emt 0:00:30]} 17. f4 {[%emt 0:02:30]} Bxc3 {[%emt 0:00:30]} 18. bxc3 {[%emt 0:01:30]} Qb6+ {[%emt 0:00:00]} 19. Qd4 {[%emt 0:00:30]} Qxb5 {[%emt 0:00:00]} 20. Rab1 {[%emt 0:00:30]} Qc6 {[%emt 0:00:30]} 21. Re1 {[%emt 0:00:30]} Re8 {[%emt 0:00:30]} 22. Rxe8+ {[%emt 0:01:30]} Rxe8 {[%emt 0:00:30]} 23. Qb4 {[%emt 0:00:30]} Qb6+ {[%emt 0:00:30]} 24. Qxb6 {[%emt 0:00:00]} cxb6 {[%emt 0:00:00]} 25. Kf2 {[%emt 0:00:00]} Re4 {[%emt 0:00:00]} 26. Re1 {[%emt 0:00:30]} Ba6 {[%emt 0:00:30]} 27. Re3 {[%emt 0:01:30]} Ra4 {[%emt 0:00:30]} 28. Re8+ {[%emt 0:00:30]} Kh7 {[%emt 0:00:00]} 29. Re7 {[%emt 0:00:00]} Bc4 {[%emt 0:00:00]} 30. Rxf7 {[%emt 0:01:00]} Rxa3 {[%emt 0:00:30]} 31. f5 {[%emt 0:00:00]} Rxc3 {[%emt 0:00:30]} 32. f6 {[%emt 0:01:00]} Rxc2+ {[%emt 0:00:00]} 33. Kf3 {[%emt 0:00:30]} Kg6 {[%emt 0:00:00]} 34. Rxg7+ {[%emt 0:01:30]} Kxf6 {[%emt 0:00:00]} 35. Rxa7 {[%emt 0:01:30]} Rxh2 {[%emt 0:00:00]} 36. Rb7 {[%emt 0:00:30]} b5 {[%emt 0:00:30]} 37. Rb6+ {[%emt 0:00:00]} Kg5 {[%emt 0:00:00]} 38. Rb8 {[%emt 0:02:00]} d4 {[%emt 0:00:00]} 39. g4 {[%emt 0:02:30]} d3 {[%emt 0:00:00]} 40. Rc8 {[%emt 0:00:30]} d2 {[%emt 0:00:00]} 41. Rc5+ {[%emt 0:00:30]} Kf6 {[%emt 0:00:30]} 42. g5+ {[%emt 0:00:30]} Ke6 {[%emt 0:00:30]} 43. Rc6+ {[%emt 0:01:30]} Kd7 {[%emt 0:00:30]} 44. Rd6+ {[%emt 0:00:00]} Kxd6 {[%emt 0:00:30]} 45. gxh6 {[%emt 0:00:00]} d1=Q+ {[%emt 0:00:00]} 46. Kf4 {[%emt 0:00:30]} Rh4+ {[%emt 0:00:00]} 47. Kf5 {[%emt 0:00:00]} Qg4+ {[%emt 0:00:00]} 48. Kf6 {[%emt 0:01:00]} Rxh6# {[%emt 0:01:00]} 0-1

[Event "FIDE World Cadets U8 2022"]
[Site "Batumi"]
[Date "2022.09.16"]
[Round "1"]
[White "Zhang, Lawrence"]
[Black "Xu, Ryan"]
[Result "0-1"]
[ECO "B50"]
[WhiteElo "1070"]
[BlackElo "1822"]
[Annotator "NA COMBH"]
[PlyCount "65"]
[EventDate "2022.09.16"]
[EventType "swiss"]
[EventCountry "GEO"]
[SourceTitle "playchess.com"]
[Source "ChessBase"]
[SourceQuality "1"]
[TimeControl "5400+30"]

1. e4 {[%emt 0:01:00]} c5 {[%emt 0:01:00]} 2. Nf3 {[%emt 0:00:30]} d6 {[%emt 0:00:30]} 3. c3 {[%emt 0:00:30]} Nf6 {[%emt 0:00:00]} 4. Bd3 {[%emt 0:00:30]} e6 {[%emt 0:00:00]} 5. Bc2 {[%emt 0:00:30]} Be7 {[%emt 0:00:30]} 6. d4 {[%emt 0:05:30]} cxd4 {[%emt 0:00:00]} 7. cxd4 {[%emt 0:01:30]} O-O {[%emt 0:00:00]} 8. Nc3 {[%emt 0:06:30]} b6 {[%emt 0:01:30]} 9. O-O {[%emt 0:04:30]} Bb7 {[%emt 0:00:00]} 10. Bf4 {[%emt 0:03:30]} Nc6 {[%emt 0:02:00]} 11. Re1 {[%emt 0:04:30]} Nh5 {[%emt 0:02:30]} 12. Bg3 {[%emt 0:01:30]} Nxg3 {[%emt 0:00:00]} 13. fxg3 {[%emt 0:00:30]} Bf6 {[%emt 0:02:00]} 14. a3 {[%emt 0:01:30]} Rc8 {[%emt 0:05:30]} 15. Qd3 {[%emt 0:10:30]} g6 {[%emt 0:00:30]} 16. Rad1 {[%emt 0:13:30]} Bg7 {[%emt 0:02:30]} 17. Bb3 {[%emt 0:01:30]} Na5 {[%emt 0:00:30]} 18. Ba2 {[%emt 0:01:30]} d5 {[%emt 0:03:30]} 19. exd5 {[%emt 0:04:30]} exd5 {[%emt 0:00:30]} 20. Ne5 {[%emt 0:01:30]} f6 {[%emt 0:05:30]} 21. Nf3 {[%emt 0:02:30]} Kh8 {[%emt 0:00:30]} 22. Nd2 {[%emt 0:02:30]} f5 {[%emt 0:04:30]} 23. b4 {[%emt 0:06:30]} Nc6 {[%emt 0:00:30]} 24. Nf3 {[%emt 0:05:30]} Qd7 {[%emt 0:02:30]} 25. Nxd5 {[%emt 0:05:32]} Rcd8 {[%emt 0:01:30]} 26. Ne5 {[%emt 0:03:38]} Qd6 {[%emt 0:06:30]} 27. Nxc6 {[%emt 0:06:37]} Bxc6 {[%emt 0:00:30]} 28. Nf4 {[%emt 0:01:25]} Qxd4+ {[%emt 0:07:30]} 29. Qxd4 {[%emt 0:00:48]} Rxd4 {[%emt 0:00:30]} 30. Ne6 {[%emt 0:04:12]} Rxd1 {[%emt 0:02:30]} 31. Rxd1 {[%emt 0:00:16]} Ba4 {[%emt 0:00:30]} 32. Rc1 {[%emt 0:00:42]} Bh6 {[%emt 0:01:30]} 33. Rc7 {[%emt 0:01:20]} 0-1